bitfinex/quotes_BTCUSD_20250403
["timestamp","ask_amount","ask_price","bid_price","bid_amount"]
[1743721047395,4e-05,82702.0,82701.0,0.2758733]
[1743721051992,4e-05,82702.0,82701.0,0.44467627]
[1743721052196,4e-05,82702.0,82701.0,0.49187627]
[1743721055670,4e-05,82702.0,82701.0,0.50641712]
[1743721056036,4e-05,82702.0,82701.0,0.6293148]
[1743721056776,4e-05,82702.0,82701.0,0.6283148]
[1743721057579,4e-05,82702.0,82701.0,0.6273148]
[1743721057811,4e-05,82702.0,82701.0,0.6283148]
[1743721058223,4e-05,82702.0,82701.0,0.50541712]
[1743721058458,4e-05,82702.0,82701.0,0.50641712]
[1743721058625,4e-05,82702.0,82701.0,0.50441712]
[1743721058806,4e-05,82702.0,82701.0,0.50541712]
[1743721059005,4e-05,82702.0,82701.0,0.50641712]
[1743721059376,4e-05,82702.0,82701.0,0.50541712]
[1743721059785,4e-05,82702.0,82701.0,0.50641712]
[1743721060480,4e-05,82702.0,82701.0,0.50541712]
[1743721060804,4e-05,82702.0,82701.0,0.50641712]
[1743721060980,4e-05,82702.0,82701.0,0.50541712]
[1743721061360,4e-05,82702.0,82701.0,0.50641712]
[1743721061566,4e-05,82702.0,82701.0,0.6303148]
[1743721061794,4e-05,82702.0,82701.0,0.6293148]
[1743721061990,4e-05,82702.0,82701.0,0.66703782]
[1743721062187,4e-05,82702.0,82701.0,0.6293148]
[1743721062388,4e-05,82702.0,82701.0,0.50541712]
[1743721062597,4e-05,82702.0,82701.0,0.50641712]
[1743721062797,4e-05,82702.0,82701.0,0.50541712]
[1743721063783,4e-05,82702.0,82701.0,0.50441712]
[1743721064099,4e-05,82702.0,82701.0,0.50541712]
[1743721064325,4e-05,82702.0,82701.0,0.50641712]
[1743721066751,1.08868,82724.0,82723.0,0.253858]
[1743721066752,0.80678983,82724.0,82723.0,0.253858]
[1743721067152,0.80678983,82724.0,82723.0,0.26885958]
[1743721068014,0.80678983,82724.0,82723.0,0.26890554]
[1743721068680,0.05773405,82725.0,82724.0,0.253855]
[1743721069015,0.05773405,82725.0,82724.0,0.26885515]
[1743721069998,0.05773405,82725.0,82724.0,0.26881515]
[1743721071975,0.05773405,82725.0,82724.0,0.27373685]
[1743721073144,0.01223405,82725.0,82724.0,0.27373685]
[1743721073546,0.13764,82728.0,82726.0,0.241761]
[1743721073931,0.13764,82728.0,82727.0,0.01498662]
[1743721074136,0.379396,82728.0,82727.0,0.01498662]
[1743721074853,0.381396,82728.0,82727.0,0.01498662]
[1743721075246,0.380396,82728.0,82727.0,0.01498662]
[1743721075409,0.39236404,82728.0,82727.0,0.01498662]
[1743721075752,0.39336404,82728.0,82727.0,0.01498662]
[1743721076132,0.39236404,82728.0,82727.0,0.01498662]
[1743721076311,0.15160804,82728.0,82727.0,0.25674562]
[1743721077366,0.39336404,82728.0,82727.0,0.01498662]
[1743721077595,0.15160804,82728.0,82727.0,0.01498662]
[1743721077799,0.15160804,82728.0,82727.0,0.241759]
[1743721078084,0.15160804,82728.0,82727.0,0.01498662]
[1743721078674,0.15160804,82728.0,82727.0,0.25674562]
[1743721080012,0.39336404,82728.0,82727.0,0.01498662]
[1743721080190,0.98739444,82728.0,82727.0,0.01498662]
[1743721080391,0.253855,82724.0,82723.0,4.596e-05]
[1743721080535,0.391495,82724.0,82723.0,4.596e-05]
[1743721081156,0.379407,82724.0,82723.0,4.596e-05]
[1743721081472,0.391495,82724.0,82723.0,4.596e-05]
[1743721084951,0.391495,82724.0,82723.0,0.01505548]
[1743721085702,0.379367,82724.0,82723.0,0.01505548]
[1743721085908,0.01196804,82728.0,82727.0,0.012087]
[1743721086107,0.34,82727.0,82726.0,0.241761]
[1743721087438,0.34,82727.0,82726.0,0.253849]
[1743721088187,0.341,82727.0,82726.0,0.253849]
[1743721088462,0.342,82727.0,82726.0,0.253849]
[1743721088666,0.342,82727.0,82726.0,0.241761]
[1743721088910,0.342,82727.0,82725.0,0.0049123]
[1743721089028,0.342,82727.0,82726.0,0.241761]
[1743721089425,0.342,82727.0,82725.0,0.2466763]
[1743721089672,0.341,82727.0,82726.0,0.253849]
[1743721090490,0.34,82727.0,82726.0,0.253849]
[1743721090690,0.341,82727.0,82726.0,0.253849]
[1743721091034,0.34,82727.0,82726.0,0.253849]
[1743721091456,0.341,82727.0,82726.0,0.253849]
[1743721091692,0.001,82727.0,82726.0,0.253849]
[1743721092056,0.002,82727.0,82726.0,0.2588054]
[1743721095598,0.002,82727.0,82726.0,0.0049564]
[1743721095815,0.012088,82726.0,82723.0,4.596e-05]
[1743721096039,0.241765,82725.0,82723.0,0.24181396]
[1743721096258,0.002,82727.0,82726.0,0.241761]
[1743721096458,0.002,82727.0,82726.0,0.253849]
[1743721096696,0.001,82727.0,82726.0,0.26886376]
[1743721096899,0.1500669,82728.0,82726.0,0.26886376]
[1743721097154,0.1500669,82728.0,82727.0,0.241759]
[1743721097366,0.1,82727.0,82726.0,0.01501476]
[1743721097571,0.341759,82727.0,82724.0,0.241767]
[1743721097743,0.1500669,82728.0,82726.0,0.241761]
[1743721097965,0.1500669,82728.0,82727.0,0.241759]
[1743721098123,0.1500669,82728.0,82727.0,0.253846]
[1743721099492,0.1510669,82728.0,82727.0,0.253846]
[1743721101007,0.15567421,82732.0,82727.0,0.253846]
[1743721101212,0.34,82731.0,82730.0,0.241749]
[1743721101369,0.34,82731.0,82730.0,0.25675804]
[1743721102613,0.60726415,82731.0,82730.0,0.01500904]
[1743721102777,0.60726415,82731.0,82723.0,4.596e-05]
[1743721102778,0.353855,82724.0,82723.0,4.596e-05]
[1743721103223,0.693855,82724.0,82723.0,4.596e-05]
[1743721106812,0.694855,82724.0,82723.0,4.596e-05]
[1743721107696,0.8151106,82724.0,82723.0,4.596e-05]
[1743721108793,0.8151106,82724.0,82716.0,0.0009975]
[1743721108794,0.639777,82717.0,82716.0,0.0009975]
[1743721108969,0.581808,82710.0,82707.0,0.01209]
[1743721109153,0.593898,82710.0,82708.0,0.01513651]
[1743721109354,0.581812,82709.0,82705.0,0.241823]
[1743721109610,0.581815,82708.0,82706.0,0.01513937]
[1743721109812,0.34,82708.0,82707.0,0.241817]
[1743721110027,0.34,82708.0,82707.0,0.01513794]
[1743721110319,0.34,82708.0,82707.0,0.27004494]
[1743721110619,0.34,82708.0,82707.0,0.26904494]
[1743721110817,0.34,82719.0,82712.0,0.241802]
[1743721111021,0.4776,82718.0,82717.0,0.253876]
[1743721111220,0.4776,82718.0,82717.0,0.26899964]
[1743721113060,0.4786,82718.0,82717.0,0.26899964]
[1743721114107,0.341,82718.0,82717.0,0.26899964]
[1743721114370,0.4786,82718.0,82717.0,0.26899964]
[1743721120713,0.341,82718.0,82717.0,0.26899964]
[1743721120936,0.4786,82718.0,82717.0,0.26899964]
[1743721122831,0.001,82718.0,82717.0,0.31459964]
[1743721123237,0.001,82718.0,82717.0,0.48310261]
[1743721124563,1.08868,82719.0,82718.0,0.253874]
[1743721124766,1.08868,82719.0,82718.0,0.37677697]
[1743721124965,1.08868,82719.0,82718.0,0.3919103]
[1743721125893,1.08868,82719.0,82718.0,0.3929103]
[1743721126925,1.08868,82719.0,82718.0,0.3939103]
[1743721130485,1.08868,82719.0,82718.0,0.51680798]
[1743721130594,6.662e-05,82724.0,82723.0,0.253858]
[1743721130805,6.2e-07,82724.0,82723.0,0.49753783]
[1743721131872,6.2e-07,82724.0,82723.0,0.49853783]
[1743721132075,1.08864,82744.0,82743.0,0.348897]
[1743721132292,1.08864,82744.0,82743.0,0.41599234]
[1743721132488,1.08864,82744.0,82743.0,0.36390442]
[1743721133838,1.08864,82744.0,82743.0,0.36490442]
[1743721134006,1.08864,82744.0,82743.0,0.36590442]
[1743721134226,1.08864,82744.0,82743.0,0.36490442]
[1743721134421,1.08864,82744.0,82743.0,0.36590442]
[1743721134626,1.08864,82744.0,82743.0,0.36490442]
[1743721135008,1.08864,82744.0,82743.0,0.36590442]
[1743721135389,1.08864,82744.0,82743.0,0.36490442]
[1743721135832,4e-05,82744.0,82743.0,0.36490442]
[1743721136275,4e-05,82744.0,82743.0,0.36390442]
[1743721136614,4e-05,82744.0,82743.0,0.36490442]
[1743721136817,4e-05,82744.0,82743.0,0.36590442]
[1743721138064,4e-05,82744.0,82743.0,0.37084852]
[1743721141269,4e-05,82744.0,82743.0,0.37084852]
[1743721143970,4e-05,82752.0,82747.0,0.2417]
[1743721144192,4e-05,82752.0,82748.0,0.0049974]
[1743721144387,4e-05,82752.0,82748.0,0.26136265]
[1743721144591,4e-05,82752.0,82750.0,0.241689]
[1743721145056,4e-05,82752.0,82751.0,0.01466396]
[1743721145438,0.24184837,82752.0,82751.0,0.01466396]
[1743721146044,0.00016237,82752.0,82751.0,0.01466396]
[1743721147154,0.00016237,82752.0,82751.0,0.25635196]
[1743721147353,0.00016237,82752.0,82751.0,0.34744205]
[1743721147527,0.00016237,82752.0,82751.0,0.31373596]
[1743721148302,0.00016237,82752.0,82751.0,0.31473596]
[1743721148947,0.00016237,82752.0,82751.0,0.31573596]
[1743721149279,0.00016237,82752.0,82751.0,0.27434686]
[1743721149657,0.00016237,82752.0,82751.0,0.27534686]
[1743721150057,0.00016237,82752.0,82751.0,0.27634686]
[1743721155313,0.241666,82759.0,82755.0,0.241674]
[1743721155513,0.241666,82759.0,82756.0,0.241674]
[1743721155723,0.24167,82758.0,82756.0,0.01460098]
[1743721155880,0.24167,82758.0,82756.0,0.25627498]
[1743721156082,0.24167,82758.0,82756.0,0.241674]
[1743721156282,0.391226,82760.0,82757.0,0.01459955]
[1743721156506,0.379143,82760.0,82757.0,0.25626955]
[1743721158429,0.13748,82760.0,82757.0,0.25626955]
[1743721158726,0.34,82759.0,82757.0,0.25626955]
[1743721159562,0.34,82759.0,82758.0,0.241668]
[1743721159730,0.34,82759.0,82757.0,0.26835255]
[1743721159906,0.34,82759.0,82758.0,0.01459812]
[1743721160111,0.34,82759.0,82758.0,0.25626612]
[1743721160935,0.581665,82759.0,82758.0,0.01459812]
[1743721161090,0.59661352,82759.0,82758.0,0.01459812]
[1743721161522,0.35494852,82759.0,82757.0,0.241669]
[1743721161717,0.35494852,82759.0,82758.0,0.25626612]
[1743721162124,0.59661352,82759.0,82758.0,0.01459812]
[1743721162333,0.7315942,82759.0,82758.0,0.01459812]
[1743721162493,0.241683,82753.0,82751.0,0.241687]
[1743721162690,0.241688,82751.0,82750.0,0.0009809]
[1743721162892,0.253772,82751.0,82750.0,0.0009809]
[1743721164169,0.253769,82753.0,82750.0,0.0019809]
[1743721164324,0.241686,82752.0,82750.0,0.2436719]
[1743721164519,0.241686,82752.0,82750.0,0.0019809]
[1743721165216,0.241686,82752.0,82750.0,0.0029809]
[1743721165420,0.241686,82752.0,82750.0,0.0019809]
[1743721165648,0.241688,82751.0,82750.0,0.0009809]
[1743721165851,0.241688,82751.0,82750.0,0.0019809]
[1743721167090,0.241688,82751.0,82750.0,0.0009809]
[1743721167224,0.241688,82751.0,82750.0,0.0019809]
[1743721167438,0.241686,82752.0,82750.0,0.2436719]
[1743721167841,0.34,82758.0,82755.0,0.012083]
[1743721168101,0.34,82758.0,82757.0,0.301454]
[1743721168474,0.34,82758.0,82757.0,0.30399695]
[1743721169693,0.34,82758.0,82757.0,0.06232595]
[1743721170329,0.34,82758.0,82757.0,0.289371]
[1743721170830,0.34,82758.0,82757.0,0.06232595]
[1743721171725,0.34,82758.0,82757.0,0.30399695]
[1743721172860,0.35494852,82759.0,82757.0,0.30399695]
[1743721174236,0.35494852,82759.0,82758.0,0.241668]
[1743721174465,0.01494852,82759.0,82758.0,0.253751]
[1743721174670,4e-05,82760.0,82759.0,0.302948]
[1743721174845,4e-05,82760.0,82759.0,0.47454387]
[1743721174980,4e-05,82760.0,82759.0,0.48912007]
[1743721175631,4e-05,82760.0,82759.0,0.49410907]
[1743721176511,4e-05,82760.0,82759.0,0.49510907]
[1743721177693,4e-05,82760.0,82759.0,0.49610907]
[1743721179338,4e-05,82760.0,82759.0,0.61900675]
[1743721180284,4e-05,82760.0,82759.0,0.49610907]
[1743721180690,4e-05,82760.0,82759.0,0.49410907]
[1743721181081,4e-05,82760.0,82759.0,0.49610907]
[1743721181507,4e-05,82760.0,82759.0,0.49510907]
[1743721182538,4e-05,82760.0,82759.0,0.49610907]
[1743721185841,4e-05,82760.0,82759.0,0.3240061]
[1743721187418,4e-05,82760.0,82759.0,0.43374161]
[1743721188204,4e-05,82760.0,82759.0,0.3240061]
[1743721188740,4e-05,82760.0,82759.0,0.44690907]
[1743721194661,4e-05,82760.0,82759.0,0.4450881]
[1743721197188,4e-05,82760.0,82759.0,0.4915881]
[1743721200279,4e-05,82760.0,82759.0,0.4908181]
[1743721200431,4e-05,82760.0,82759.0,0.61371578]
[1743721201693,4e-05,82760.0,82759.0,0.62825663]
[1743721202404,4e-05,82760.0,82759.0,0.64609147]
[1743721202777,4e-05,82760.0,82759.0,0.64709147]
[1743721202990,4e-05,82760.0,82759.0,0.4888181]
[1743721203397,4e-05,82760.0,82759.0,0.4908181]
[1743721203602,4e-05,82760.0,82759.0,0.50435895]
[1743721204184,1.188,82793.0,82792.0,0.241569]
[1743721204185,1.088,82793.0,82792.0,0.241569]
[1743721204382,1.088,82793.0,82792.0,0.42464997]
[1743721204383,1.0880834,82793.0,82792.0,0.42464997]
[1743721204602,1.0880834,82793.0,82792.0,0.49833777]
[1743721205003,8.34e-05,82793.0,82792.0,0.49833777]
[1743721207061,8.34e-05,82793.0,82792.0,0.51487862]
[1743721207272,8.34e-05,82793.0,82792.0,0.51387862]
[1743721207480,8.34e-05,82793.0,82792.0,0.51287862]
[1743721207889,8.34e-05,82793.0,82792.0,0.51387862]
[1743721208294,8.34e-05,82793.0,82792.0,0.51287862]
[1743721208443,8.34e-05,82793.0,82792.0,0.56147862]
[1743721208645,8.34e-05,82793.0,82792.0,0.56247862]
[1743721209253,8.34e-05,82793.0,82792.0,0.56347862]
[1743721209464,8.34e-05,82793.0,82792.0,0.56841302]
[1743721209891,8.34e-05,82793.0,82792.0,0.56941302]
[1743721210250,8.34e-05,82793.0,82792.0,0.57341302]
[1743721210454,4e-05,82803.0,82802.0,0.253617]
[1743721210665,4e-05,82803.0,82802.0,0.56162272]
[1743721211287,4e-05,82803.0,82802.0,0.56662272]
[1743721211903,0.004,82829.0,82828.0,0.253537]
[1743721212116,0.00446019,82829.0,82828.0,0.42203997]
[1743721212312,0.00446019,82829.0,82828.0,0.46296589]
[1743721212732,0.00446019,82829.0,82828.0,0.42203997]
[1743721213131,0.00446019,82829.0,82828.0,0.37743997]
[1743721213478,0.00446019,82829.0,82828.0,0.37643997]
[1743721214510,0.00446019,82829.0,82828.0,0.38138477]
[1743721214686,0.00446019,82829.0,82828.0,0.38238477]
[1743721214986,0.00446019,82829.0,82828.0,0.38338477]
[1743721215727,0.00446019,82829.0,82828.0,0.38437347]
[1743721215924,0.00446019,82829.0,82828.0,0.0079335]
[1743721216131,0.00446019,82829.0,82828.0,0.0029887]
[1743721216332,0.00446019,82829.0,82828.0,0.002]
[1743721216799,0.08431681,82829.0,82828.0,0.002]
[1743721216997,0.09638981,82829.0,82828.0,0.002]
[1743721217179,0.01653319,82829.0,82828.0,0.001]
[1743721217617,0.01653319,82829.0,82828.0,0.002]
[1743721217977,0.35653319,82829.0,82828.0,0.001]
[1743721218382,0.35653319,82829.0,82828.0,0.002]
[1743721218625,0.35653319,82829.0,82811.0,0.241512]
[1743721218626,0.241496,82817.0,82811.0,0.241512]
[1743721218776,0.012075,82815.0,82808.0,0.253596]
[1743721218979,0.012074,82817.0,82790.0,0.00924408]
[1743721218980,0.241516,82810.0,82809.0,0.01328698]
[1743721219209,0.241522,82808.0,82804.0,0.241533]
[1743721219406,0.241528,82807.0,82805.0,0.0049821]
[1743721219612,0.253604,82806.0,82805.0,0.01333985]
[1743721219807,0.241523,82808.0,82798.0,0.241551]
[1743721220009,0.253592,82810.0,82802.0,0.253614]
[1743721220254,0.241538,82803.0,82799.0,0.13625138]
[1743721220403,0.241538,82803.0,82799.0,0.12290297]
[1743721220616,0.241541,82802.0,82800.0,0.000983]
[1743721220819,0.253618,82802.0,82800.0,0.000983]
[1743721221030,0.241541,82802.0,82800.0,0.000983]
[1743721221312,0.241534,82804.0,82800.0,0.000983]
[1743721221521,0.00045991,82804.0,82800.0,0.000983]
[1743721221647,0.00045991,82804.0,82803.0,0.012076]
[1743721221856,0.00045991,82804.0,82801.0,0.253616]
[1743721222053,0.00045991,82804.0,82803.0,0.012076]
[1743721224073,0.00045991,82804.0,82803.0,0.013076]
[1743721224493,0.00045991,82804.0,82803.0,0.018018]
[1743721224667,0.00045991,82804.0,82803.0,0.019018]
[1743721225514,0.01253591,82804.0,82803.0,0.006942]
[1743721225844,1.50921425,82804.0,82803.0,0.002]
[1743721225967,1.81913722,82804.0,82803.0,0.002]
[1743721226777,1.81913722,82804.0,82803.0,0.001]
[1743721227279,0.241575,82790.0,82789.0,0.000995]
[1743721227726,0.253653,82790.0,82789.0,0.01446565]
[1743721227931,0.253653,82790.0,82789.0,0.000995]
[1743721228952,0.253653,82790.0,82789.0,0.01546565]
[1743721229126,0.253653,82790.0,82789.0,0.001995]
[1743721229338,0.253653,82790.0,82789.0,0.002995]
[1743721229545,0.241575,82790.0,82789.0,0.01646565]
[1743721230735,0.253653,82790.0,82789.0,0.01646565]
[1743721230937,0.253653,82790.0,82789.0,0.002995]
[1743721231170,0.395413,82790.0,82789.0,0.002995]
[1743721231372,0.395413,82790.0,82789.0,0.01681934]
[1743721234851,0.4954037,82790.0,82789.0,0.01681934]
[1743721235072,0.5405037,82790.0,82789.0,0.01582434]
[1743721235274,0.780233,82790.0,82789.0,0.002]
[1743721235982,0.780233,82790.0,82789.0,0.001]
[1743721237149,0.638753,82790.0,82789.0,0.001]
[1743721237374,0.34,82788.0,82782.0,0.253675]
[1743721237573,0.352078,82789.0,82783.0,0.01403345]
[1743721237731,0.241592,82784.0,82783.0,0.01403345]
[1743721237932,0.241601,82782.0,82779.0,0.00099]
[1743721238133,0.241601,82782.0,82780.0,0.01403773]
[1743721238382,0.241595,82783.0,82780.0,0.01403773]
[1743721239694,1.329235,82783.0,82780.0,0.01403773]
[1743721240104,1.32319559,82783.0,82780.0,0.01403773]
[1743721240259,1.32319559,82783.0,82780.0,0.25564073]
[1743721240917,1.32319559,82783.0,82780.0,0.01403773]
[1743721241302,1.32319559,82783.0,82780.0,0.25564173]
[1743721241722,0.241598,82782.0,82780.0,0.01403773]
[1743721241923,1.32319559,82783.0,82780.0,0.25563973]
[1743721243746,0.14108,82782.0,82780.0,0.25563973]
[1743721244691,0.14108,82782.0,82781.0,0.253681]
[1743721245070,0.14108,82782.0,82781.0,0.26780697]
[1743721245774,0.14108,82782.0,82781.0,0.25572697]
[1743721246329,0.14108,82782.0,82781.0,0.01412597]
[1743721246745,0.382678,82782.0,82781.0,0.01412597]
[1743721247680,0.14108,82782.0,82781.0,0.01412597]
[1743721247886,0.14108,82782.0,82781.0,0.25572697]
[1743721248217,0.14108,82782.0,82781.0,0.26780697]
[1743721248454,0.14108,82782.0,82781.0,0.31540697]
[1743721248694,1.08764,82783.0,82782.0,0.253677]
[1743721249058,1.08764,82783.0,82782.0,0.26780154]
[1743721250616,1.08864,82783.0,82782.0,0.26780154]
[1743721253188,1.342314,82783.0,82782.0,0.01412454]
[1743721253611,0.241604,82780.0,82779.0,0.00099]
[1743721254098,0.241604,82780.0,82779.0,0.01509727]
[1743721254301,0.241601,82782.0,82779.0,0.242596]
[1743721254506,0.241601,82782.0,82779.0,0.25670327]
[1743721254666,0.241602,82781.0,82779.0,0.02007787]
[1743721254863,0.241601,82781.0,82779.0,0.02007787]
[1743721255069,0.253684,82780.0,82779.0,0.01509727]
[1743721255471,0.253684,82780.0,82779.0,0.00099]
[1743721255700,0.241601,82782.0,82779.0,0.242595]
[1743721255873,1.329235,82783.0,82779.0,0.242595]
[1743721256078,0.241599,82782.0,82780.0,0.01410584]
[1743721256280,0.241601,82781.0,82780.0,0.01410584]
[1743721258198,0.241599,82782.0,82780.0,0.01410584]
[1743721260535,0.36449868,82781.0,82780.0,0.01410584]
[1743721261114,0.47657868,82781.0,82780.0,0.01410584]
[1743721261322,0.241604,82780.0,82779.0,0.00099]
[1743721261527,0.241604,82780.0,82758.0,0.0009866]
[1743721261528,0.253748,82759.0,82758.0,0.0009866]
[1743721261777,0.012081,82769.0,82749.0,0.15739638]
[1743721261778,0.012083,82755.0,82749.0,0.15739638]
[1743721261979,0.241676,82756.0,82749.0,0.29238335]
[1743721262200,0.241676,82756.0,82752.0,0.253769]
[1743721262429,0.241676,82756.0,82753.0,0.01414578]
[1743721262563,0.241676,82756.0,82754.0,0.241679]
[1743721262897,0.26082197,82756.0,82755.0,0.01424768]
[1743721263111,0.01914597,82756.0,82755.0,0.25592468]
[1743721263324,0.30378451,82760.0,82757.0,0.24167]
[1743721263444,0.38282,82761.0,82758.0,0.241667]
[1743721263647,0.38282,82761.0,82758.0,0.25694753]
[1743721263907,0.14116,82761.0,82760.0,0.253745]
[1743721264084,0.14116,82761.0,82760.0,0.47354797]
[1743721264286,0.722949,82772.0,82766.0,0.241645]
[1743721264496,0.34,82770.0,82766.0,0.241645]
[1743721264660,0.34,82770.0,82767.0,0.01426767]
[1743721264860,0.34,82770.0,82767.0,0.241642]
[1743721265060,0.34,82770.0,82768.0,0.241637]
[1743721265257,0.34,82770.0,82768.0,0.25590324]
[1743721265517,0.34,82770.0,82769.0,0.241636]
[1743721265815,0.3576783,82770.0,82769.0,0.01426482]
[1743721266070,0.0176783,82770.0,82769.0,0.26798182]
[1743721266410,0.382948,82772.0,82770.0,0.241632]
[1743721266604,0.382948,82772.0,82771.0,0.01426196]
[1743721266810,0.382948,82772.0,82769.0,0.2426177]
[1743721267009,0.382948,82772.0,82770.0,0.01427555]
[1743721267374,0.14132,82772.0,82771.0,0.253711]
[1743721267672,0.14132,82772.0,82771.0,0.25590412]
[1743721267828,0.14132,82772.0,82771.0,0.01427412]
[1743721268029,0.382947,82772.0,82771.0,0.01427412]
[1743721268192,0.382947,82772.0,82769.0,0.2426167]
[1743721268399,0.3330826,82771.0,82770.0,0.01427555]
[1743721268652,0.0914506,82771.0,82770.0,0.01427555]
[1743721268854,0.382947,82772.0,82770.0,0.01427555]
[1743721269354,0.1590015,82772.0,82770.0,0.01427555]
[1743721269767,1.08792,82771.0,82770.0,0.01427555]
[1743721270212,1.08792,82771.0,82769.0,0.2426147]
[1743721270424,1.08792,82771.0,82769.0,0.2436147]
[1743721270541,1.08792,82771.0,82770.0,0.26798955]
[1743721271408,1.12668359,82771.0,82770.0,0.26798955]
[1743721272113,1.12668359,82771.0,82770.0,0.01427555]
[1743721272689,1.36831359,82771.0,82770.0,0.01427555]
[1743721272898,1.48039459,82771.0,82770.0,0.01427555]
[1743721273100,0.253714,82770.0,82769.0,0.0019817]
[1743721273332,0.37661168,82770.0,82769.0,0.001]
[1743721274297,1.18792,82771.0,82767.0,0.241639]
[1743721274504,1.18792,82771.0,82769.0,0.253716]
[1743721274721,0.001,82770.0,82768.0,0.0049528]
[1743721274966,0.254716,82770.0,82768.0,0.0049528]
[1743721275202,0.24164,82768.0,82765.0,0.241645]
[1743721275988,0.241636,82769.0,82766.0,0.241644]
[1743721276203,0.241636,82769.0,82765.0,0.241645]
[1743721276204,1.18892,82771.0,82767.0,0.012082]
[1743721276455,0.241634,82770.0,82767.0,0.241639]
[1743721276708,1.08892,82771.0,82766.0,0.253721]
[1743721276949,0.241633,82770.0,82767.0,0.241642]
[1743721277421,1.330553,82771.0,82770.0,0.241633]
[1743721277422,1.42792,82771.0,82770.0,0.241633]
[1743721277702,1.08792,82771.0,82770.0,0.253714]
[1743721277958,1.08792,82771.0,82770.0,0.42491697]
[1743721278472,1.08792,82771.0,82770.0,0.30428607]
[1743721278667,1.08792,82771.0,82770.0,0.01435307]
[1743721278887,1.08792,82771.0,82770.0,0.26906707]
[1743721279180,1.08792,82771.0,82770.0,0.26806707]
[1743721279867,1.08792,82771.0,82770.0,0.26906707]
[1743721280359,1.08792,82771.0,82770.0,0.26806707]
[1743721280791,1.21081768,82771.0,82770.0,0.01435307]
[1743721281449,1.32955,82771.0,82770.0,0.01435307]
[1743721281724,0.253714,82770.0,82769.0,0.0009851]
[1743721281971,0.241655,82763.0,82759.0,0.287365]
[1743721282211,0.241659,82761.0,82759.0,0.0457]
[1743721282450,0.241659,82761.0,82760.0,0.01431832]
[1743721282686,0.241659,82761.0,82759.0,0.0457]
[1743721282821,0.241659,82761.0,82760.0,0.01433505]
[1743721283196,0.241659,82761.0,82759.0,0.0457]
[1743721283445,0.241659,82761.0,82760.0,0.01433505]
[1743721283682,0.241659,82761.0,82760.0,0.01533505]
[1743721284174,0.241659,82761.0,82760.0,0.01433505]
[1743721284651,0.241662,82760.0,82759.0,0.0467]
[1743721285463,0.768659,82760.0,82759.0,0.001]
[1743721285695,0.59376,82755.0,82732.0,0.0459]
[1743721285933,0.73484,82755.0,82732.0,0.0459]
[1743721286172,0.73484,82755.0,82732.0,0.287644]
[1743721286426,0.73484,82755.0,82732.0,0.0459]
[1743721286661,0.73484,82755.0,82733.0,0.241741]
[1743721286898,0.73484,82755.0,82732.0,0.287644]
[1743721287629,0.73484,82755.0,82733.0,0.241739]
[1743721287854,0.73484,82755.0,82735.0,0.012086]
[1743721288094,0.73584,82755.0,82735.0,0.012086]
[1743721288287,0.85873768,82755.0,82735.0,0.012086]
[1743721288526,0.85873768,82755.0,82742.0,0.0009804]
[1743721289781,0.85873768,82755.0,82744.0,0.004988]
[1743721290047,0.98164065,82755.0,82744.0,0.004988]
[1743721290235,0.98164065,82755.0,82732.0,0.0459]
[1743721291083,0.98164065,82755.0,82754.0,4e-07]
[1743721291286,0.98164065,82755.0,82699.0,0.483672]
[1743721291287,0.7431,82742.0,82714.0,0.0462]
[1743721291519,1.37065382,82742.0,82741.0,3.7e-07]
[1743721291732,0.353877,82717.0,82711.0,0.004]
[1743721291947,0.593892,82712.0,82711.0,0.004]
[1743721292154,0.34,82712.0,82711.0,0.004]
[1743721292356,0.48108,82712.0,82711.0,0.004]
[1743721292505,0.48108,82712.0,82711.0,0.01898338]
[1743721292761,0.48108,82712.0,82711.0,0.00413805]
[1743721292921,0.48108,82712.0,82711.0,0.01898338]
[1743721293120,0.48108,82712.0,82711.0,0.00413805]
[1743721293327,0.50938074,82712.0,82711.0,0.00413805]
[1743721293527,0.51238074,82712.0,82711.0,0.00413805]
[1743721293974,0.16136502,82712.0,82711.0,0.00413805]
[1743721294300,0.63635799,82712.0,82711.0,0.00413805]
[1743721294506,0.61907297,82712.0,82711.0,0.01911273]
[1743721294614,0.62007297,82712.0,82711.0,0.00413805]
[1743721294819,0.72228771,82712.0,82711.0,0.00413805]
[1743721295015,0.49617,82712.0,82711.0,0.00413805]
[1743721295245,0.49717,82712.0,82711.0,0.00413805]
[1743721295697,0.49417,82712.0,82711.0,0.00413805]
[1743721295865,0.49717,82712.0,82711.0,0.00413805]
[1743721296080,0.48508,82712.0,82711.0,0.00413805]
[1743721296506,0.48308,82712.0,82711.0,0.00413805]
[1743721296712,0.48508,82712.0,82711.0,0.00413805]
[1743721296934,0.738972,82712.0,82711.0,0.01912118]
[1743721297097,0.738972,82712.0,82711.0,0.00413805]
[1743721297294,0.86186968,82712.0,82711.0,0.00413805]
[1743721297497,0.738972,82712.0,82711.0,0.00413805]
[1743721297919,0.004,82712.0,82711.0,0.24594305]
[1743721298208,0.004,82712.0,82711.0,0.30753305]
[1743721298411,0.004,82712.0,82711.0,0.3235342]
[1743721298658,0.004,82712.0,82711.0,0.0696392]
[1743721298973,0.245802,82712.0,82711.0,0.0696392]
[1743721299176,0.257892,82712.0,82711.0,0.0201392]
[1743721299387,0.38078968,82712.0,82711.0,0.00413805]
[1743721302973,0.257892,82712.0,82711.0,0.00413805]
[1743721304358,0.597892,82712.0,82711.0,0.00413805]
[1743721304806,0.738932,82712.0,82711.0,0.00413805]
[1743721305585,0.344,82712.0,82711.0,0.00413805]
[1743721305785,0.485,82712.0,82711.0,0.24594305]
[1743721306016,0.86178968,82712.0,82711.0,0.00413805]
[1743721306232,1.03169265,82712.0,82711.0,0.01946942]
[1743721306420,0.253981,82683.0,82682.0,0.0495]
[1743721306619,1.342701,82683.0,82682.0,0.0495]
[1743721306994,0.253984,82682.0,82681.0,0.00445971]
[1743721307420,0.012094,82682.0,82681.0,0.00445971]
[1743721307610,0.253984,82682.0,82681.0,0.00445971]
[1743721308144,1.08872,82683.0,82681.0,0.00445971]
[1743721308373,1.08872,82683.0,82682.0,0.253984]
[1743721308580,1.08872,82683.0,82682.0,0.26676398]